bitfinex/quotes_BTCUSD_20220201
["timestamp","ask_amount","ask_price","bid_price","bid_amount"]
[1643737466308,0.164444,38815.0,38808.0,0.19394477]
[1643737466508,0.14414204,38817.0,38808.0,0.19541643]
[1643737466710,0.1,38816.0,38809.0,0.03899026]
[1643737466909,0.1,38816.0,38808.0,0.25985843]
[1643737467508,0.1,38816.0,38808.0,0.25838677]
[1643737467709,0.1,38817.0,38809.0,0.04904224]
[1643737467912,0.1,38817.0,38810.0,0.128863]
[1643737468113,0.00140131,38819.0,38812.0,0.064429]
[1643737468511,0.00140131,38819.0,38812.0,0.10390931]
[1643737468711,0.34383363,38822.0,38816.0,0.05]
[1643737468962,0.00140143,38819.0,38816.0,0.05]
[1643737469963,0.34383363,38822.0,38816.0,0.05]
[1643737470164,0.00140149,38819.0,38816.0,0.05]
[1643737470362,0.00140149,38819.0,38816.0,0.1]
[1643737470667,0.349428,38818.0,38812.0,0.05]
[1643737470864,0.28997728,38817.0,38808.0,0.00147177]
[1643737471067,0.2280528,38813.0,38808.0,0.00147177]
[1643737471268,0.25741789,38812.0,38805.0,0.1054025]
[1643737471464,0.043,38811.0,38808.0,0.00147168]
[1643737471663,0.20272753,38810.0,38808.0,0.00147168]
[1643737472264,0.48927987,38810.0,38805.0,0.21128978]
[1643737472466,0.19491509,38810.0,38805.0,0.2054025]
[1643737472703,0.19491509,38810.0,38807.0,0.00147167]
[1643737473503,0.143,38811.0,38805.0,0.2054025]
[1643737473706,0.043,38811.0,38807.0,0.00147168]
[1643737474306,0.19496763,38810.0,38807.0,0.00147168]
[1643737474804,0.143,38811.0,38803.0,0.128884]
[1643737475004,0.143,38811.0,38807.0,0.00147168]
[1643737475206,0.43445663,38811.0,38807.0,0.00147168]
[1643737475406,0.64347464,38811.0,38807.0,0.00147168]
[1643737476104,0.64347464,38811.0,38807.0,0.00147167]
[1643737476756,0.1961972,38810.0,38807.0,0.00147167]
[1643737477059,0.043,38809.0,38807.0,0.00147167]
[1643737477257,0.19902253,38808.0,38801.0,0.05]
[1643737477456,0.24202253,38808.0,38807.0,0.00147168]
[1643737477657,1.343,38808.0,38807.0,0.00147168]
[1643737477856,1.443,38808.0,38807.0,0.00147168]
[1643737478259,1.443,38808.0,38807.0,0.17194571]
[1643737478260,0.043,38808.0,38807.0,0.17194571]
[1643737478459,0.043,38808.0,38807.0,0.17047403]
[1643737479058,0.043,38808.0,38807.0,0.22047403]
[1643737479259,0.043,38808.0,38807.0,0.29573318]
[1643737479457,0.1,38812.0,38807.0,0.29573318]
[1643737479861,0.19730202,38813.0,38807.0,0.36017218]
[1643737480108,0.2008025,38814.0,38807.0,0.39492505]
[1643737480308,0.1008025,38814.0,38807.0,0.36017218]
[1643737480508,0.19962181,38813.0,38807.0,0.36017218]
[1643737480709,0.19962181,38813.0,38807.0,0.28491303]
[1643737480909,0.19962181,38813.0,38808.0,0.00147165]
[1643737481109,0.19962181,38813.0,38808.0,0.00138477]
[1643737481110,0.22630764,38812.0,38808.0,0.00138477]
[1643737481412,0.2066932,38811.0,38808.0,0.00138477]
[1643737481911,0.3066932,38811.0,38806.0,0.10250123]
[1643737482109,0.3066932,38811.0,38805.0,0.064443]
[1643737482312,0.3066932,38811.0,38803.0,0.128877]
[1643737482511,0.15305144,38802.0,38799.0,0.178902]
[1643737482711,0.043,38801.0,38794.0,0.19332]
[1643737482912,0.043,38801.0,38789.0,0.0990316]
[1643737482913,0.043,38800.0,38796.0,0.02047268]
[1643737483111,1.50757354,38797.0,38796.0,0.02047268]
[1643737483312,1.96569808,38797.0,38796.0,0.02194446]
[1643737483511,2.31512608,38797.0,38796.0,0.02194446]
[1643737483711,1.96569808,38797.0,38796.0,0.02194446]
[1643737484262,2.06569808,38797.0,38796.0,0.02194446]
[1643737484462,2.06569808,38797.0,38796.0,0.02047268]
[1643737484658,2.06569808,38797.0,38790.0,0.396932]
[1643737484659,2.06569808,38797.0,38795.0,0.00147181]
[1643737484959,1.61641619,38796.0,38795.0,0.00147181]
[1643737485159,1.65941619,38796.0,38795.0,0.00147181]
[1643737485559,1.65941619,38796.0,38791.0,0.05]
[1643737485759,1.65941619,38796.0,38794.0,0.00147183]
[1643737485960,0.84916603,38795.0,38794.0,0.00147183]
[1643737486162,0.693,38795.0,38794.0,0.00147183]
[1643737486761,0.99127209,38795.0,38790.0,0.268]
[1643737486963,0.1,38794.0,38793.0,0.00147185]
[1643737487164,0.29964234,38794.0,38793.0,0.00147185]
[1643737487363,1.04964234,38794.0,38793.0,0.00147185]
[1643737488012,1.04964234,38794.0,38790.0,0.268]
[1643737488214,1.04964234,38794.0,38792.0,0.00147187]
[1643737488412,1.19766194,38793.0,38792.0,0.00147187]
[1643737488813,0.29766194,38793.0,38792.0,0.00147187]
[1643737489216,0.29766194,38793.0,38790.0,0.268]
[1643737489414,0.29766194,38793.0,38791.0,0.00147189]
[1643737489615,0.1,38793.0,38791.0,0.00147189]
[1643737489813,0.20904285,38796.0,38791.0,0.00147189]
[1643737490415,0.20904285,38796.0,38790.0,0.318]
[1643737490620,0.20904285,38796.0,38792.0,0.00147187]
[1643737491017,0.12104752,38794.0,38792.0,0.00147187]
[1643737491216,1.10749455,38793.0,38792.0,0.00147187]
[1643737491660,1.20749455,38793.0,38790.0,0.318]
[1643737491868,0.20749455,38793.0,38791.0,0.00147189]
[1643737492060,0.043,38795.0,38791.0,0.00147189]
[1643737492463,0.1,38798.0,38791.0,0.00147189]
[1643737492664,0.1,38798.0,38797.0,0.10615705]
[1643737492864,0.12893,38805.0,38793.0,0.087174]
[1643737492865,0.23860234,38804.0,38793.0,0.087174]
[1643737493064,0.064466,38802.0,38793.0,0.00147185]
[1643737493263,0.29068872,38801.0,38793.0,0.00147185]
[1643737493465,1.4,38799.0,38790.0,0.368]
[1643737493664,0.24018795,38798.0,38790.0,0.268]
[1643737493863,0.24018795,38798.0,38792.0,0.10208964]
[1643737494067,0.24018795,38798.0,38792.0,0.064465]
[1643737494263,0.24018795,38798.0,38792.0,0.114465]
[1643737494264,0.34018795,38798.0,38792.0,0.114465]
[1643737494466,0.34018795,38798.0,38792.0,0.05]
[1643737494666,0.043,38801.0,38790.0,0.368]
[1643737494868,0.05,38809.0,38790.0,0.368]
[1643737494869,0.30201616,38806.0,38791.0,0.04110636]
[1643737495119,0.30201616,38806.0,38792.0,0.16414686]
[1643737495120,0.29680028,38806.0,38792.0,0.16414686]
[1643737495319,0.29680028,38806.0,38793.0,0.05]
[1643737495720,0.10533766,38804.0,38798.0,0.05]
[1643737495921,0.10533766,38804.0,38798.0,0.114454]
[1643737496119,0.40011222,38804.0,38798.0,0.114454]
[1643737496320,0.40011222,38804.0,38798.0,0.064454]
[1643737496721,0.40011222,38804.0,38796.0,0.05]
[1643737497523,0.4013229,38804.0,38795.0,0.11445598]
[1643737497725,0.19792599,38803.0,38795.0,0.11445598]
[1643737497925,0.20533766,38804.0,38795.0,0.17891498]
[1643737498224,0.20533766,38804.0,38796.0,0.04415663]
[1643737498225,0.30297607,38804.0,38796.0,0.04415663]
[1643737498425,0.30297607,38804.0,38799.0,0.16789303]
[1643737498426,0.10533766,38804.0,38799.0,0.16789303]
[1643737498626,0.19522737,38803.0,38799.0,0.03326077]
[1643737498870,0.19522737,38803.0,38798.0,0.05]
[1643737499064,0.29522737,38803.0,38798.0,0.05]
[1643737499461,0.28615011,38803.0,38798.0,0.05]
[1643737500061,0.28615011,38803.0,38798.0,0.114453]
[1643737500262,0.28615011,38803.0,38798.0,0.064453]
[1643737500463,0.064464,38801.0,38798.0,0.064453]
[1643737500763,0.21270551,38800.0,38793.0,0.128929]
[1643737500964,0.21270551,38800.0,38794.0,0.0198374]
[1643737501764,0.21270551,38800.0,38794.0,0.0843014]
[1643737502166,0.19700211,38800.0,38794.0,0.0843014]
[1643737502364,0.19700211,38800.0,38794.0,0.1343014]
[1643737502616,0.29701755,38800.0,38799.0,0.10904076]
[1643737502814,0.2003586,38802.0,38799.0,0.10904076]
[1643737503013,0.16446,38803.0,38799.0,0.10904076]
[1643737503014,0.29530544,38803.0,38799.0,0.10904076]
[1643737503819,0.19530544,38803.0,38799.0,0.10904076]
[1643737504015,0.064458,38805.0,38799.0,0.15904076]
[1643737504016,0.19480398,38804.0,38799.0,0.15904076]
[1643737504219,0.064458,38805.0,38799.0,0.15904076]
[1643737504416,0.21686265,38807.0,38800.0,0.064454]
[1643737504617,0.00140525,38807.0,38800.0,0.064454]
[1643737504823,0.03878662,38819.0,38800.0,0.064454]
[1643737504824,0.61112369,38815.0,38804.0,0.08612914]
[1643737505016,0.61112369,38815.0,38804.0,0.21501014]
[1643737505017,0.00140534,38807.0,38804.0,0.21501014]
[1643737505222,0.00140534,38807.0,38804.0,0.21607277]
[1643737505416,0.00140534,38807.0,38805.0,0.114441]
[1643737505617,0.00140534,38807.0,38806.0,0.10732378]
[1643737505818,0.00140534,38807.0,38806.0,0.85732378]
[1643737506018,0.22776228,38816.0,38806.0,0.85732378]
[1643737506219,0.00140538,38808.0,38806.0,0.10732378]
[1643737506875,0.00111565,38808.0,38806.0,0.10732378]
[1643737507273,6.824e-05,38813.0,38807.0,0.06443788]
[1643737507474,6.824e-05,38813.0,38808.0,0.064436]
[1643737507673,6.824e-05,38813.0,38808.0,0.114436]
[1643737507873,0.28859071,38816.0,38808.0,0.114436]
[1643737508073,0.19647703,38816.0,38808.0,0.114436]
[1643737508273,0.45081312,38816.0,38808.0,0.164436]
[1643737508675,0.18770192,38817.0,38810.0,0.064438]
[1643737509273,0.128881,38819.0,38810.0,0.064438]
[1643737509274,0.09220682,38811.0,38810.0,0.064438]
[1643737509474,0.09220682,38811.0,38809.0,0.05]
[1643737509679,0.09220682,38811.0,38807.0,0.128871]
[1643737509877,0.08720682,38811.0,38803.0,0.128884]
[1643737510320,0.11672717,38805.0,38803.0,0.128884]
[1643737510718,0.25490138,38807.0,38803.0,0.128884]
[1643737511526,0.25490138,38807.0,38801.0,0.0202657]
[1643737511725,0.392428,38806.0,38801.0,0.0202657]
[1643737512122,0.1,38805.0,38801.0,0.0202657]
[1643737512321,0.392428,38804.0,38801.0,0.0202657]
[1643737512624,1.49008123,38802.0,38801.0,0.0202657]
[1643737512822,2.11144023,38802.0,38801.0,0.0202657]
[1643737513722,2.11144023,38802.0,38794.0,0.00147044]
[1643737513964,0.064469,38799.0,38794.0,0.00147044]
[1643737514264,0.043,38798.0,38794.0,0.00147044]
[1643737514460,0.043,38798.0,38796.0,0.01922214]
[1643737514663,0.043,38798.0,38797.0,0.11413248]
[1643737514861,0.1,38806.0,38797.0,0.11413248]
[1643737514862,0.228919,38806.0,38797.0,0.11413248]
[1643737515061,0.228919,38806.0,38798.0,0.064458]
[1643737515263,0.06446,38803.0,38798.0,0.064458]
[1643737515861,0.06446,38803.0,38798.0,0.24735312]
[1643737516263,0.2334,38809.0,38798.0,0.24735312]
[1643737516462,0.08963063,38805.0,38798.0,0.059458]
[1643737517063,0.043,38809.0,38798.0,0.059458]
[1643737517064,0.27662916,38807.0,38798.0,0.059458]
[1643737517463,0.27662916,38807.0,38798.0,0.23249009]
[1643737517710,0.27662916,38807.0,38800.0,0.064454]
[1643737518110,0.38476025,38807.0,38800.0,0.16532789]
[1643737518310,0.1,38806.0,38800.0,0.16532789]
[1643737518512,0.064457,38805.0,38800.0,0.16532789]
[1643737518911,0.23727915,38804.0,38800.0,0.064454]
[1643737519111,0.23727915,38804.0,38799.0,0.05]
[1643737519312,0.23727915,38804.0,38798.0,0.05]
[1643737519512,0.23727915,38804.0,38795.0,0.228913]
[1643737519711,0.12681818,38800.0,38795.0,0.228913]
[1643737519912,0.24117813,38799.0,38795.0,0.05]
[1643737520314,0.24117813,38799.0,38794.0,0.05]
[1643737520514,0.24117813,38799.0,38794.0,0.07033422]
[1643737520711,0.24117813,38799.0,38794.0,0.05147036]
[1643737521113,0.24117813,38799.0,38794.0,0.00147036]
[1643737521375,0.349428,38798.0,38794.0,0.00147036]
[1643737521572,0.28818837,38797.0,38791.0,0.05]
[1643737521767,0.2253918,38795.0,38794.0,0.00147035]
[1643737521968,2.27062761,38795.0,38794.0,0.00147035]
[1643737522165,2.37062761,38795.0,38794.0,0.00147035]
[1643737522765,2.1178288,38795.0,38789.0,0.0011]
[1643737522967,2.1178288,38795.0,38793.0,0.00147037]
[1643737522968,1.86436182,38795.0,38793.0,0.00147037]
[1643737523170,1.699437,38794.0,38793.0,0.00147037]
[1643737523369,1.742437,38794.0,38793.0,0.00147037]
[1643737523969,1.742437,38794.0,38789.0,0.0011]
[1643737524171,1.393,38794.0,38792.0,0.00147039]
[1643737524370,1.599437,38793.0,38792.0,0.00147039]
[1643737524571,1.642437,38793.0,38792.0,0.00147039]
[1643737524772,1.742437,38793.0,38792.0,0.00147039]
[1643737524970,1.86925518,38793.0,38792.0,0.00147039]
[1643737525217,0.064484,38792.0,38789.0,0.0011]
[1643737525417,0.49280112,38791.0,38789.0,0.0011]
[1643737525920,0.392437,38791.0,38789.0,0.0011]
[1643737526118,1.53118315,38790.0,38789.0,0.0011]
[1643737526320,1.92362015,38790.0,38789.0,0.0011]
[1643737526819,0.27418315,38790.0,38789.0,0.0011]
[1643737527020,0.043,38790.0,38789.0,0.0011]
[1643737527218,0.1,38790.0,38789.0,0.0011]
[1643737528119,1.4674745,38790.0,38789.0,0.0011]
[1643737528717,1.8169115,38790.0,38789.0,0.0011]
[1643737528961,1.20557811,38790.0,38789.0,0.0011]
[1643737530260,1.33239629,38790.0,38789.0,0.0011]
[1643737530759,0.43239629,38790.0,38789.0,0.0011]
[1643737530963,0.22681818,38790.0,38789.0,0.0011]
[1643737531165,0.42919741,38790.0,38789.0,0.0011]
[1643737531560,0.22681818,38790.0,38789.0,0.0511]
[1643737533023,0.77790897,38790.0,38789.0,0.0011]
[1643737533424,0.57681818,38790.0,38789.0,0.0011]
[1643737533626,0.0011,38789.0,38787.0,0.12748208]
[1643737533827,0.0011,38789.0,38788.0,0.00147047]
[1643737534226,0.0011,38789.0,38788.0,0.05147047]
[1643737534424,1.29723938,38789.0,38788.0,0.05147047]
[1643737534825,1.29723938,38789.0,38787.0,0.0011]
[1643737535027,1.62315671,38788.0,38787.0,0.00257049]
[1643737535427,1.72643569,38788.0,38787.0,0.00257049]
[1643737535629,1.95425073,38788.0,38787.0,0.00257049]
[1643737535828,2.18053102,38788.0,38787.0,0.00257049]
[1643737536029,1.77409402,38788.0,38787.0,0.0011]
[1643737536229,0.27309716,38788.0,38787.0,0.0011]
[1643737536864,0.61981818,38788.0,38787.0,0.0011]
[1643737537864,1.53471665,38788.0,38787.0,0.0011]
[1643737538664,0.92570666,38788.0,38787.0,0.0011]
[1643737539366,0.26080819,38788.0,38787.0,0.0011]
[1643737539763,0.76080819,38788.0,38787.0,0.0011]
[1643737540229,0.96214376,38788.0,38787.0,0.0011]
[1643737540832,1.86214376,38788.0,38787.0,0.0011]
[1643737541632,1.96214376,38788.0,38787.0,0.0011]
[1643737542032,1.06214376,38788.0,38787.0,0.0011]
[1643737542835,1.61214376,38788.0,38787.0,0.0011]
[1643737543435,0.36080819,38788.0,38787.0,0.0011]
[1643737543634,0.26080819,38788.0,38787.0,0.0011]
[1643737543869,1.31784004,38788.0,38787.0,0.0011]
[1643737546369,1.4192514,38788.0,38787.0,0.0011]
[1643737547371,1.3192514,38788.0,38787.0,0.0011]
[1643737547814,0.95,38787.0,38786.0,0.00457051]
[1643737548015,0.19240137,38788.0,38786.0,0.0031]
[1643737548217,0.55,38787.0,38786.0,0.00457051]
[1643737548415,0.12681818,38787.0,38786.0,0.00457051]
[1643737549216,0.12681818,38787.0,38786.0,0.0031]
[1643737550817,0.62681818,38787.0,38786.0,0.0031]
[1643737551219,0.12681818,38787.0,38786.0,0.0031]
[1643737551667,1.75386374,38787.0,38786.0,0.0031]
[1643737551868,1.89686374,38787.0,38786.0,0.0031]
[1643737552068,1.66981818,38787.0,38786.0,0.0031]
[1643737552664,0.16981818,38787.0,38786.0,0.0031]
[1643737553668,1.85746807,38787.0,38786.0,0.0031]
[1643737554068,1.97256807,38787.0,38786.0,0.0031]
[1643737554472,1.97256807,38787.0,38781.0,0.01818137]
[1643737554473,1.4,38785.0,38781.0,0.01818137]
[1643737554874,1.4,38785.0,38776.0,0.0011]
[1643737554875,0.03991701,38778.0,38776.0,0.0011]
[1643737555119,0.20440701,38778.0,38776.0,0.0011]
[1643737555319,0.10440701,38778.0,38776.0,0.0011]
[1643737555520,0.20440701,38778.0,38776.0,0.0011]
[1643737555920,0.33338501,38778.0,38776.0,0.0011]
[1643737556318,0.23338501,38778.0,38776.0,0.0011]
[1643737556519,0.33338501,38778.0,38776.0,0.0011]
[1643737556721,0.23338501,38778.0,38776.0,0.0011]
[1643737557122,0.21838501,38778.0,38776.0,0.0011]
[1643737557325,0.21838501,38778.0,38776.0,0.00031253]
[1643737557821,0.19867087,38777.0,38776.0,0.00031253]
[1643737558124,0.19867087,38777.0,38774.0,0.002]
[1643737558125,1.4,38775.0,38774.0,0.002]
[1643737558322,0.05,38771.0,38769.0,0.0011]
[1643737558524,1.71933775,38771.0,38769.0,0.0011]
[1643737558721,2.08337608,38771.0,38769.0,0.0011]
[1643737558970,0.1,38768.0,38763.0,0.42584746]
[1643737559171,0.05,38765.0,38763.0,0.42584746]
[1643737559368,0.19875703,38767.0,38763.0,0.42584746]
[1643737559569,0.05,38766.0,38763.0,0.00584746]
[1643737559972,0.05,38766.0,38762.0,0.09808985]
[1643737560269,0.12681818,38765.0,38763.0,0.00146175]
[1643737561170,0.31723545,38765.0,38762.0,0.0011]
[1643737561373,0.12681818,38765.0,38763.0,0.00146176]
[1643737561969,0.17681818,38765.0,38763.0,0.00146176]
[1643737562372,0.17681818,38765.0,38762.0,0.0011]
[1643737562623,0.12681818,38765.0,38763.0,0.00146176]
[1643737563620,0.12681818,38765.0,38762.0,0.0011]
[1643737563822,0.12681818,38765.0,38763.0,0.00146176]
[1643737564821,0.12681818,38765.0,38762.0,0.0011]
[1643737565024,0.32219351,38765.0,38763.0,0.00146176]
[1643737565227,0.42219351,38765.0,38763.0,0.00146176]
[1643737565523,0.043,38764.0,38763.0,0.00146176]
[1643737565926,0.34535871,38764.0,38763.0,0.00146176]
[1643737566125,0.34535871,38764.0,38762.0,0.0011]
[1643737566371,0.34535871,38764.0,38762.0,0.00256178]
[1643737566372,0.09619011,38763.0,38762.0,0.00256178]
[1643737566567,0.73919011,38763.0,38762.0,0.00256178]
[1643737566768,0.96443129,38763.0,38762.0,0.00256178]
[1643737566968,0.73919011,38763.0,38762.0,0.00256178]
[1643737567267,0.18919011,38763.0,38762.0,0.0011]
[1643737567470,0.41024416,38763.0,38761.0,0.0045618]
[1643737567668,0.72976074,38762.0,38761.0,0.0045618]
[1643737568070,0.72976074,38762.0,38751.0,0.0022]
[1643737568071,0.05,38753.0,38751.0,0.0022]
[1643737568272,0.05,38753.0,38751.0,0.0011]
[1643737568469,0.05,38753.0,38748.0,0.002]
[1643737568470,0.05,38751.0,38748.0,0.002]
[1643737568672,0.16446596,38750.0,38748.0,0.002]
[1643737568870,0.16446596,38750.0,38745.0,0.0022]
[1643737568871,0.05,38747.0,38745.0,0.0022]
[1643737569069,0.043,38746.0,38745.0,0.0022]
[1643737569268,0.043,38746.0,38745.0,0.0011]
[1643737569470,0.65663999,38746.0,38744.0,0.0011]
[1643737569671,0.55,38745.0,38739.0,0.0011]
[1643737569868,0.043,38744.0,38739.0,0.0011]
[1643737570120,0.064553,38743.0,38739.0,0.0011]
[1643737570320,0.043,38742.0,38740.0,0.13503923]
[1643737570824,0.107553,38742.0,38741.0,1.299454]
[1643737571021,0.107553,38742.0,38741.0,0.349454]
[1643737571220,0.107553,38742.0,38740.0,0.349454]
[1643737571421,0.064553,38742.0,38740.0,0.349454]
[1643737571620,0.064553,38742.0,38739.0,0.00183965]
[1643737572023,0.064553,38742.0,38739.0,0.0011]
[1643737572220,0.064553,38742.0,38740.0,0.349454]
[1643737572420,0.064553,38742.0,38740.0,0.339454]
[1643737572821,0.064553,38742.0,38740.0,0.20354418]
[1643737573026,0.5,38743.0,38741.0,0.67896499]
[1643737573222,0.5,38743.0,38741.0,0.3349557]
[1643737573421,0.5,38743.0,38740.0,0.34601023]
[1643737573625,0.5,38743.0,38740.0,0.39601023]
[1643737573872,0.5,38743.0,38741.0,0.24254491]
[1643737574068,0.05,38748.0,38742.0,0.334945]
[1643737574267,0.05,38748.0,38741.0,0.344704]
[1643737574668,0.064528,38746.0,38743.0,0.00129813]
[1643737574868,0.064528,38746.0,38744.0,0.334923]
[1643737575067,0.064528,38746.0,38743.0,0.00129813]
[1643737575267,0.064528,38746.0,38744.0,0.349483]
[1643737575572,0.064528,38746.0,38743.0,0.00129813]
[1643737575769,0.064528,38746.0,38739.0,0.0011]
[1643737575969,0.064528,38746.0,38739.0,0.05]
[1643737576168,0.12681818,38742.0,38740.0,0.60410525]
[1643737576468,0.12681818,38742.0,38741.0,1.15]
[1643737576669,0.12681818,38742.0,38741.0,1.480183]
[1643737577067,0.12681818,38742.0,38741.0,1.58101166]
[1643737577267,0.12681818,38742.0,38741.0,0.330183]
[1643737577467,0.12681818,38742.0,38736.0,0.06763795]
[1643737577721,0.12681818,38742.0,38737.0,0.449483]
[1643737577922,0.12681818,38742.0,38737.0,0.6433782]
[1643737578322,0.12681818,38742.0,38739.0,0.30918141]
[1643737578621,0.12681818,38742.0,38740.0,0.375224]
[1643737579424,0.00605173,38748.0,38740.0,0.325224]
[1643737579624,0.21259359,38748.0,38742.0,0.1064851]
[1643737579824,0.20637647,38748.0,38742.0,0.1064851]
[1643737580027,0.129078,38763.0,38752.0,0.05]
[1643737580229,0.19361623,38774.0,38743.0,1.4]
[1643737580230,0.5,38768.0,38759.0,0.05]
[1643737580430,2.20729621,38785.0,38759.0,0.05]
[1643737580431,0.05,38774.0,38760.0,0.23058204]
[1643737580631,0.064499,38774.0,38761.0,0.349476]
[1643737580830,0.128997,38775.0,38760.0,0.635]
[1643737581127,0.33224578,38766.0,38760.0,0.635]
[1643737581381,0.33224578,38766.0,38761.0,0.349476]
[1643737581571,0.33224578,38766.0,38752.0,0.35958704]
[1643737581770,0.064515,38763.0,38753.0,0.396976]
[1643737582169,0.12290988,38760.0,38755.0,0.13518871]
[1643737582369,0.12290988,38760.0,38756.0,0.324921]
[1643737582569,0.12290988,38760.0,38757.0,0.06450899]
[1643737582770,0.12290988,38760.0,38758.0,0.349433]
[1643737583273,0.12363297,38760.0,38758.0,0.349433]
[1643737583669,0.21145011,38760.0,38758.0,0.349433]
[1643737584069,0.23283097,38766.0,38754.0,0.324937]
[1643737584271,0.00144257,38761.0,38757.0,0.06451029]
[1643737584471,0.00144257,38761.0,38758.0,0.59553859]
[1643737584675,0.00144257,38761.0,38758.0,0.64553859]
[1643737584871,0.00144257,38761.0,38759.0,0.1]
[1643737585129,0.00144257,38761.0,38760.0,1.9648291]
[1643737585330,0.29126537,38768.0,38760.0,1.874886]
[1643737585631,0.00144257,38762.0,38760.0,0.474886]
[1643737586229,0.00144257,38762.0,38760.0,0.374886]
[1643737586430,0.11753775,38761.0,38760.0,0.374886]
[1643737586628,0.11753775,38761.0,38755.0,0.1]
[1643737586832,0.11753775,38761.0,38756.0,0.349476]
[1643737587631,0.11753775,38761.0,38756.0,0.346976]
[1643737588033,0.11753775,38761.0,38754.0,0.324912]
[1643737588034,0.00144257,38760.0,38754.0,0.324912]
[1643737588234,0.06596057,38760.0,38750.0,0.347039]
[1643737588435,0.06596057,38760.0,38749.0,0.5]
[1643737588634,0.09772962,38754.0,38749.0,0.5]
[1643737588874,0.09772962,38754.0,38750.0,0.349422]
[1643737588875,0.33574415,38754.0,38750.0,0.349422]
[1643737589068,0.33703288,38754.0,38750.0,0.349422]
[1643737589268,0.00128873,38754.0,38750.0,0.349422]
[1643737589471,0.00128873,38754.0,38750.0,0.399422]
[1643737589670,0.00128873,38754.0,38751.0,0.0517]
[1643737589969,0.00128873,38754.0,38752.0,0.372555]
[1643737590169,0.064522,38755.0,38752.0,0.372555]
[1643737590370,0.00128873,38754.0,38753.0,0.1]
[1643737590574,0.00128873,38754.0,38753.0,0.449394]
[1643737590975,0.00128873,38754.0,38753.0,0.68626885]
[1643737591171,0.00128873,38754.0,38753.0,0.449394]
[1643737591372,0.064514,38757.0,38753.0,1.249394]
[1643737591572,0.00128871,38755.0,38754.0,0.322536]
[1643737591979,0.00128871,38755.0,38752.0,0.349402]
[1643737592471,0.114514,38757.0,38752.0,0.349402]
[1643737592723,0.00132439,38755.0,38752.0,0.349402]
[1643737593322,0.00132439,38755.0,38751.0,0.55]
[1643737593823,0.064514,38757.0,38751.0,0.55]
[1643737594024,0.0166244,38755.0,38752.0,0.349422]
[1643737594225,0.0166244,38755.0,38753.0,0.1]
[1643737594424,0.0166244,38755.0,38754.0,1.099404]
[1643737594625,0.0166244,38755.0,38754.0,1.149404]
[1643737594825,0.0166244,38755.0,38754.0,0.349404]
[1643737594826,0.25650808,38755.0,38754.0,0.349404]
[1643737595026,0.25650808,38755.0,38750.0,0.322551]
[1643737595225,0.25650808,38755.0,38751.0,0.01916235]
[1643737595426,0.25650808,38755.0,38752.0,0.349421]
[1643737595724,0.25650808,38755.0,38752.0,0.399421]
[1643737596128,0.25650808,38755.0,38752.0,0.349421]
[1643737596377,0.25650808,38755.0,38749.0,0.5]
[1643737596378,0.18770367,38754.0,38749.0,0.5]
[1643737596573,0.129062,38753.0,38746.0,0.00119046]
[1643737597174,0.121161,38752.0,38749.0,0.01869522]
[1643737597574,0.121161,38752.0,38746.0,0.00119046]
[1643737597774,0.121161,38752.0,38741.0,0.23068418]
[1643737597775,1.114534,38751.0,38741.0,0.72711901]
[1643737597976,0.05,38747.0,38742.0,0.349422]
[1643737598181,0.05,38747.0,38743.0,0.322712]
[1643737598375,0.05,38747.0,38742.0,0.349422]
[1643737598779,0.09881105,38745.0,38742.0,0.349422]
[1643737598974,0.09881105,38745.0,38741.0,0.322731]
[1643737599376,0.11208161,38743.0,38742.0,0.8]
[1643737599574,0.11208161,38743.0,38742.0,1.149422]
[1643737599774,0.11208161,38743.0,38742.0,0.394422]
[1643737600220,0.11208161,38743.0,38742.0,0.349422]
[1643737601023,0.11208161,38743.0,38741.0,0.3233326]
[1643737601222,0.3977709,38743.0,38741.0,0.3233326]
[1643737601925,0.28568929,38743.0,38741.0,0.3233326]
[1643737602124,0.28568929,38743.0,38741.0,0.322734]
[1643737602422,0.28568929,38743.0,38740.0,0.00119424]
[1643737602622,0.28568929,38743.0,38741.0,0.32278]
[1643737602823,0.95282515,38742.0,38741.0,0.32278]
[1643737603023,0.95282515,38742.0,38740.0,0.00119424]
[1643737603024,0.75,38742.0,38740.0,0.00119424]
[1643737603224,0.564557,38741.0,38737.0,0.0485487]
[1643737603424,0.564557,38741.0,38736.0,1.0006]
[1643737603425,0.064557,38740.0,38739.0,0.00132152]
[1643737603624,0.90163977,38740.0,38739.0,0.00132152]
[1643737603876,0.13739031,38740.0,38739.0,0.00132152]
[1643737604568,0.20194331,38740.0,38736.0,0.5006]
[1643737607172,0.20194331,38740.0,38736.0,0.50204951]
[1643737607635,0.20194331,38740.0,38737.0,0.349422]
[1643737607636,0.05,38739.0,38737.0,0.349422]
[1643737607835,0.22068944,38738.0,38736.0,0.00454951]
[1643737608034,0.22068944,38738.0,38737.0,0.349422]
[1643737608035,0.82068944,38738.0,38737.0,0.349422]
[1643737608235,0.86368944,38738.0,38736.0,0.0031]
[1643737608437,0.26368944,38738.0,38736.0,0.0031]
[1643737608635,0.043,38738.0,38736.0,0.0031]
[1643737611482,0.24537878,38738.0,38736.0,0.0031]
[1643737611680,0.043,38738.0,38736.0,0.0031]
[1643737612282,0.06238411,38740.0,38736.0,0.0531]
[1643737612482,0.06238411,38740.0,38737.0,0.349422]
[1643737612680,0.06238411,38740.0,38737.0,0.399422]
[1643737613082,0.09017537,38739.0,38737.0,0.40087151]
[1643737613283,0.09017537,38739.0,38737.0,0.39864143]
[1643737613783,0.09017537,38739.0,38737.0,0.35087151]
[1643737613984,0.7608946,38738.0,38737.0,0.00144951]
[1643737614185,0.2108946,38738.0,38736.0,0.0031]
[1643737614387,0.2108946,38738.0,38736.0,0.00454951]
[1643737615324,0.09017537,38739.0,38736.0,0.0031]
[1643737615525,0.06238411,38740.0,38736.0,0.0031]
[1643737615924,0.06238411,38740.0,38734.0,0.49567928]
[1643737616124,0.06238411,38740.0,38735.0,0.399422]
[1643737616326,0.06238411,38740.0,38736.0,0.1]
[1643737616525,0.064537,38744.0,38737.0,0.68174647]
[1643737616726,0.129076,38746.0,38738.0,0.1]
[1643737616928,0.2371,38755.0,38739.0,0.342365]
[1643737617125,0.2371,38755.0,38744.0,0.05]